Cogmind - Beta 16 @@@ ROGUE MODE // 2025.10.23 @ 11:45:42 Player: abnormality Result: Self-destructed Performance ------------- Evolutions (3) 1500 Regions Visited (5) 1000 Robots Destroyed (32) 160 Value Destroyed (628) 628 Prototype IDs (0) 0 Alien Tech Used (0) 0 Bonus (0) 0 TOTAL SCORE: 3288 Bonus ------- None Cogmind --------- Core Integrity 644/700 Matter 20/300 Energy 350/350 System Corruption 0% Temperature Cool (0) Movement Core (450) Ox8 Location -7/Factory Parts ------- > --- POWER (2) -------- Light Nuclear Core Improved Deuterium Engine > --- PROPULSION (3) --- (None) > --- UTILITY (5) ------ Small Storage Unit > --- WEAPON (3) ------- Heavy Assault Rifle Grenade Launcher > --- INVENTORY (8) ---- Wheel Wheel Huge Storage Unit Advanced Weight Redist. System Mining Laser Peak State ------------ > --- POWER ------------ Light Nuclear Core Improved Deuterium Engine > --- PROPULSION ------- Aluminum Leg > --- UTILITY ---------- Small Storage Unit > --- WEAPON ----------- EM Pulse Gun Shock Rifle Rocket Launcher > --- INVENTORY -------- Wheel Wheel Huge Storage Unit Advanced Weight Redist. System Heavy Assault Rifle Grenade Launcher Mining Laser [Rating: 16] Favorites ----------- Power Light Ion Engine Engine Light Ion Engine Power Core Light Nuclear Core Propulsion Light Treads Treads Light Treads Leg Aluminum Leg Utility Small Storage Unit Device Seismic Detector Storage Small Storage Unit Weapon Small Laser Energy Gun Small Laser Ballistic Gun Heavy Assault Rifle Launcher Rocket Launcher Build | -11 -10 -10 -9 -8 -7 ------- Run | Yrd Mat Min Mat Mat Fac Slots Evolved 6 | . . . 2 2 2 Power 1 | . . . . 1 . Propulsion 1 | . . . . 1 . Utility 3 | . . . 2 . 1 Weapon 1 | . . . . . 1 Parts Attached 20 | 9 . 1 5 1 4 Power 5 | 1 . . 2 . 2 Engine 4 | 1 . . 2 . 1 Core 1 | . . . . . 1 Reactor . | . . . . . . Propulsion 4 | 2 . . 2 . . Treads 2 | 2 . . . . . Leg 2 | . . . 2 . . Wheel . | . . . . . . Hover . | . . . . . . Flight . | . . . . . . Utility 3 | 3 . . . . . Device 2 | 2 . . . . . Storage 1 | 1 . . . . . Processor . | . . . . . . Hackware . | . . . . . . Protection . | . . . . . . Artifact . | . . . . . . Weapon 8 | 3 . 1 1 1 2 Energy Gun 5 | 3 . . 1 1 . Energy Cannon . | . . . . . . Ballistic Gun 1 | . . . . . 1 Ballistic Cannon . | . . . . . . Launcher 2 | . . 1 . . 1 Special Weapon . | . . . . . . Impact Weapon . | . . . . . . Slashing Weapon . | . . . . . . Piercing Weapon . | . . . . . . Special Melee Weapon . | . . . . . . Unidentified Prototypes . | . . . . . . Parts Lost 10 | . . . 6 . 4 Power 1 | . . . 1 . . Propulsion 3 | . . . 2 . 1 Utility 2 | . . . 2 . . Weapon 4 | . . . 1 . 3 Highest Loss Streak 5 | . . . 5 . 2 To Critical Strikes . | . . . . . . Average Backups 6 | 2 3 5 7 7 7 Power . | . 1 1 1 . . Propulsion . | . . . . 1 2 Utility 1 | . 1 1 . 1 2 Weapon 3 | . 1 3 4 4 3 Tool/Special . | . . . . . . Unused Backups 5 | . . . . . 5 Power . | . . . . . . Propulsion 2 | . . . . . 2 Utility 2 | . . . . . 2 Weapon 1 | . . . . . 1 Tool/Special . | . . . . . . Average Slot Usage (%) 74 | . 100 100 81 50 50 Engine 12 | . 14 14 10 16 8 Core 1 | . . . . . 5 Treads 12 | . 28 28 13 . . Leg 5 | . . . 7 9 7 Device 9 | . 14 14 17 . . Storage 10 | . 14 14 11 9 7 Energy Gun 14 | . 28 21 10 7 12 Launcher 6 | . . 6 10 9 6 Peak Build Rating 16 | 9 7 8 15 10 16 Average Rating 10 | 4 7 7 11 9 14 On Entrance 6 | . 7 7 8 5 10 Avg Prop Armor Cover (%) . | . . . . . . Naked Turns . | . . . . . . Heaviest Build 29 | 11 11 14 21 18 29 Greatest Support 40 | 40 40 40 40 10 10 Greatest Overweight (x) 2 | . . . 1 1 2 Average Overweight (x) . | . . . . . 1 Largest Inventory Capacity 8 | 8 8 8 8 8 8 Average Capacity 7 | 6 8 8 8 8 8 Most Carried 8 | 5 4 6 8 8 8 Average Carried 6 | 2 3 5 7 7 7 Final Capacity 8 | 8 8 8 8 8 8 Final Carried 8 | 3 4 6 8 8 5 Class Distribution -------------------- 85% | Mutant 14% | Gunner Dominant Class ---------------- Mutant | -10/Materials Mutant | -10/Mines Mutant | -9/Materials Mutant | -8/Materials Gunner | -7/Factory Resources | -11 -10 -10 -9 -8 -7 ----------- Run | Yrd Mat Min Mat Mat Fac Matter Collected 390 | 270 20 21 32 47 . Remotely . | . . . . . . Salvage Created 686 | 73 170 88 74 57 224 Parts 55 | 6 10 1 8 6 24 Haulers Intercepted . | . . . . . . Recyclers Shooed 2 | . . . . 1 1 Parts Field Recycled . | . . . . . . Retrieved Matter . | . . . . . . Parts Self-Destructed . | . . . . . . Prevented . | . . . . . . Parts Restored . | . . . . . . Kills | -11 -10 -10 -9 -8 -7 ------- Run | Yrd Mat Min Mat Mat Fac Combat Hostiles Destroyed 24 | . 5 3 6 4 6 Guns 10 | . 5 2 1 . 2 AOE 14 | . . 1 5 4 4 Classes Destroyed 8 | 2 3 . 1 2 . Worker 1 | . . . . 1 . Builder 2 | . . . . 1 1 Tunneler 1 | 1 . . . . . Recycler 2 | 1 . . . . 1 Watcher 2 | . 2 . . . . Swarmer 17 | . 3 1 5 4 4 Grunt 5 | . 2 2 . . 1 Sentry 2 | . . . 1 . 1 Best Kill Streak 8 | 2 4 2 3 5 8 Combat Bots Only 5 | . 3 2 3 4 5 Max Kills in Single Turn 4 | 1 1 1 2 4 2 Gunslinging . | . . . . . . Exploded 4 | . . 1 2 4 2 Melee . | . . . . . . Uniques/NPCs Destroyed . | . . . . . . Combat | -11 -10 -10 -9 -8 -7 -------- Run | Yrd Mat Min Mat Mat Fac Hostile Shots Fired 111 | . 27 16 17 4 47 Missed 38 | . 6 6 5 2 19 Hits 73 | . 21 10 12 2 28 Melee 1 | . . . . . 1 Projectile 72 | . 21 10 12 2 27 Critical Strikes 1 | . . 1 . . . Damage Taken 1415 | . 240 120 601 53 401 Core 209 | . 17 6 130 . 56 Absorbed by Shields . | . . . . . . Regen/Repaired (Parts) 17 | . . . 17 . . Core Remaining (%) 89 | 100 . 90 67 100 . Volleys Fired 60 | 4 21 9 10 7 9 Largest 3 | 2 2 2 2 2 3 Hottest 123 | 80 80 80 83 83 123 Shots Fired 118 | 8 42 14 20 11 23 Gun 94 | 8 42 13 10 6 15 Cannon . | . . . . . . Launcher 24 | . . 1 10 5 8 Special . | . . . . . . Kinetic 3 | . . . . . 3 Thermal 64 | 8 42 13 1 . . Explosive 24 | . . 1 10 5 8 Electromagnetic 27 | . . . 9 6 12 Robot Hit Streak 6 | 5 6 4 5 1 5 Robot Miss Streak 5 | 1 5 3 1 2 2 Penetration Max . | . . . . . . Secondary Targets . | . . . . . . Shots Hit Robots 58 | 6 20 8 7 4 13 Core Hits 50 | 3 12 5 6 7 17 Critical Kills 1 | . . . . . 1 Critical Parts Destroyed . | . . . . . . Critical Strikes 1 | . . . . . 1 Destroy 1 | . . . . . 1 Melee Attacks . | . . . . . . Impact . | . . . . . . Slashing . | . . . . . . Piercing . | . . . . . . Sneak Attacks . | . . . . . . Combat Hostiles . | . . . . . . Follow-up Attacks . | . . . . . . Damage Inflicted 1741 | 67 248 184 290 386 566 Guns 626 | 67 248 77 60 50 124 Cannons . | . . . . . . Explosions 1115 | . . 107 230 336 442 Melee . | . . . . . . Ramming . | . . . . . . Kinetic 17 | . . . . . 17 Thermal 392 | 67 248 77 . . . Explosive 1115 | . . 107 230 336 442 Electromagnetic 217 | . . . 60 50 107 Impact . | . . . . . . Slashing . | . . . . . . Piercing . | . . . . . . Highest Corruption 18 | . . . 18 . . Average Corruption 18 | . . . 18 . . Corruption Purged . | . . . . . . Corruption Blocked . | . . . . . . Effects 1 | . . . 1 . . Heat Flow Errors 1 | . . . 1 . . Overload Shots . | . . . . . . Overflow Damage 44 | . . 2 13 4 25 Projectiles . | . . . . . . Explosions 44 | . . 2 13 4 25 Melee . | . . . . . . Knockbacks . | . . . . . . Impact . | . . . . . . Kinetic . | . . . . . . Secondary . | . . . . . . Self-Inflicted Damage 285 | . . 17 141 39 88 Shots 10 | . . 1 5 2 2 Rammed . | . . . . . . Targets Rammed . | . . . . . . Kicked . | . . . . . . Crushed . | . . . . . . Highest Temperature 235 | 54 153 39 235 36 187 Average Temperature 45 | 25 58 17 34 14 68 Received Heat Transfer 294 | . 120 45 45 . 84 Siege Activations . | . . . . . . Martial Activations . | . . . . . . Shielding Activations . | . . . . . . Robots Disrupted . | . . . . . . Combat Hostiles . | . . . . . . Robots Corrupted . | . . . . . . Combat Hostiles . | . . . . . . Parts Fried . | . . . . . . Impact Corruptions . | . . . . . . Robots Melted . | . . . . . . Combat Hostiles . | . . . . . . Parts Melted 2 | 1 1 . . . . Heat Transferred 875 | 150 550 175 . . . Parts Sabotaged . | . . . . . . Parts Stolen . | . . . . . . Parts Stripped . | . . . . . . Power Chain Reactions . | . . . . . . Alert | -11 -10 -10 -9 -8 -7 ------- Run | Yrd Mat Min Mat Mat Fac Maximum Alert Level . | . . . . . . Low Security (%) 100 | 100 100 100 100 100 100 Level 1 . | . . . . . . Level 2 . | . . . . . . Level 3 . | . . . . . . Level 4 . | . . . . . . Level 5 . | . . . . . . High Security . | . . . . . . Max Security . | . . . . . . Peak Influence 147 | 5 69 52 147 99 139 Initial 39 | . . 1 8 34 39 Average 30 | . 40 15 49 31 14 Influence Increases 853 | 10 136 82 274 152 199 Destroy 0b10 Robot/C 480 | . 100 60 120 80 120 Destroy 0b10 Robot/NC 40 | 10 10 . . 10 10 Destroy Leader 94 | . 24 10 30 10 20 Allied During Kill 3 | . . 3 . . . Successful Hack 12 | . 2 . . . 10 Disable Machine 30 | . . . 15 15 . Destroy Structure 134 | . . 9 49 37 39 Lose Combat Pursuer 60 | . . . 60 . . Influence Decreases 734 | 10 130 66 213 146 169 Entered New Map 118 | . . 5 14 49 50 Time Decay 516 | 10 130 61 139 97 79 Lost Part 100 | . . . 60 . 40 Squads Dispatched 4 | . 1 . 1 1 1 Investigation 2 | . . . 1 . 1 Extermination . | . . . . . . Reinforcement 2 | . 1 . . 1 . Assault . | . . . . . . Garrison . | . . . . . . Intercept . | . . . . . . Searches Triggered . | . . . . . . Construction Impeded . | . . . . . . Haulers Reinforced . | . . . . . . Active Scanning Responses . | . . . . . . Cargo Convoy Interrupts . | . . . . . . Stealth | -11 -10 -10 -9 -8 -7 --------- Run | Yrd Mat Min Mat Mat Fac Distress Signals 3 | . . . 2 . 1 Communications Jammed . | . . . . . . Distress Signals . | . . . . . . Times Spotted 39 | . 8 5 11 5 10 Peak Tracking Total 9 | . 3 3 4 4 9 Tactical Retreats 2 | . . . 2 . . Traps | -11 -10 -10 -9 -8 -7 ------- Run | Yrd Mat Min Mat Mat Fac Traps Triggered 1 | . . . 1 . . Indirectly . | . . . . . . Trap Hack Attempts . | . . . . . . Triggered . | . . . . . . Disarmed . | . . . . . . Reprogrammed . | . . . . . . Reused . | . . . . . . Traps Extracted . | . . . . . . Installed . | . . . . . . Triggered . | . . . . . . Machines | -11 -10 -10 -9 -8 -7 ---------- Run | Yrd Mat Min Mat Mat Fac Machines Disabled 2 | . . . 1 1 . Max in Single Turn 1 | . . . 1 1 . Machines Repaired . | . . . . . . Machines Dismantled . | . . . . . . Machines Sabotaged . | . . . . . . Overloaded Fab Kills . | . . . . . . Hacking | -11 -10 -10 -9 -8 -7 --------- Run | Yrd Mat Min Mat Mat Fac Machines Accessed 8 | . 2 . 2 2 2 Terminals 7 | . 2 . 1 2 2 Fabricators . | . . . . . . Repair Stations 1 | . . . 1 . . Recycling Units . | . . . . . . Scanalyzers . | . . . . . . Garrison Access . | . . . . . . Total Hacks 21 | . 5 . 7 5 4 Successful 13 | . 3 . 4 4 2 Failed 8 | . 2 . 3 1 2 Catastrophic . | . . . . . . Database Lockouts . | . . . . . . Manual . | . . . . . . Terminals 18 | . 5 . 4 5 4 Fabricators . | . . . . . . Repair Stations 3 | . . . 3 . . Recycling Units . | . . . . . . Scanalyzers . | . . . . . . Garrison Access . | . . . . . . Terminal Hacks 11 | . 3 . 2 4 2 Record 2 | . 1 . . . 1 Open DSF 1 | . . . . . 1 Emergency Access Points 1 | . . . . 1 . Alert Level 4 | . 1 . 1 2 . Locate Traps 1 | . 1 . . . . Zone Layout 2 | . . . 1 1 . Fabricator Hacks . | . . . . . . Repair Station Hacks 2 | . . . 2 . . Scan Component 1 | . . . 1 . . Repair 1 | . . . 1 . . Recycling Unit Hacks . | . . . . . . Scanalyzer . | . . . . . . Garrison Access Hacks . | . . . . . . Unauthorized Hacks . | . . . . . . Terminals . | . . . . . . Fabricators . | . . . . . . Repair Stations . | . . . . . . Recycling Units . | . . . . . . Scanalyzers . | . . . . . . Garrison Access . | . . . . . . Data Cores Recovered . | . . . . . . Used . | . . . . . . Hacking Detections 6 | . 2 . 2 1 1 Full Trace Events 2 | . . . 1 . 1 Feedback Events . | . . . . . . Feedback Blocked . | . . . . . . Robot Schematics Acquired . | . . . . . . Robots Built . | . . . . . . Authchips . | . . . . . . Time . | . . . . . . Total Robot Build Rating . | . . . . . . Part Schematics Acquired . | . . . . . . Parts Built . | . . . . . . Authchips . | . . . . . . Time . | . . . . . . Total Part Build Rating . | . . . . . . Part Studies Acquired . | . . . . . . Parts Repaired 1 | . . . 1 . . Time 32 | . . . 32 . . Parts Recycled . | . . . . . . Recycled Matter . | . . . . . . Retrieved Matter . | . . . . . . Retrieved Components . | . . . . . . Parts Scanalyzed . | . . . . . . Part Schematics Acquired . | . . . . . . Parts Damaged . | . . . . . . Bothacking | -11 -10 -10 -9 -8 -7 ------------ Run | Yrd Mat Min Mat Mat Fac Used RIF Installer . | . . . . . . Robots Hacked . | . . . . . . Non-combat . | . . . . . . Combat . | . . . . . . Robot Hacks Applied . | . . . . . . Relay Couplers Released . | . . . . . . Fabnet Peak Effective % . | . . . . . . Robots Rewired . | . . . . . . Allies Hacked . | . . . . . . Hacks Repelled . | . . . . . . Allies | -11 -10 -10 -9 -8 -7 -------- Run | Yrd Mat Min Mat Mat Fac Total Allies 1 | . . 1 . . . Largest Group 1 | . . 1 1 . . Highest-Rated Group 31 | . . 31 31 . . Highest-Rated Ally 31 | . . 31 31 . . Total Orders . | . . . . . . Ally Attacks 4 | . . 4 . . . Total Damage 42 | . . 42 . . . Kills . | . . . . . . Allies Corrupted . | . . . . . . Allies Melted . | . . . . . . Intel | -11 -10 -10 -9 -8 -7 ------- Run | Yrd Mat Min Mat Mat Fac Active Infowar (turns) 929 | 4 273 213 439 . . Terrain 289 | 1 . . 288 . . Seismic 928 | 3 273 213 439 . . Robot Analysis Total . | . . . . . . Derelict Logs Recovered . | . . . . . . Drone Launches . | . . . . . . Drone Recoveries . | . . . . . . Exploration | -11 -10 -10 -9 -8 -7 ------------- Run | Yrd Mat Min Mat Mat Fac Turns Passed 1654 | 87 273 213 447 273 361 Spaces Moved 781 | 52 130 117 216 136 130 Core 24 | 24 . . . . . Treads 410 | 28 130 117 135 . . Legs 347 | . . . 81 136 130 Wheels . | . . . . . . Hover . | . . . . . . Flight . | . . . . . . Fastest Speed 50 | 50 160 160 120 120 190 Average Speed 178 | 109 160 160 168 184 251 Slowest Speed 260 | 160 160 160 190 190 260 Overloaded Moves . | . . . . . . Propulsion Burnouts . | . . . . . . Robots Hopped . | . . . . . . Potential Cave-ins 5 | . . . 5 . . Cave-ins Triggered 1 | . . . 1 . . Exploration Rate (%) 18 | 4 33 32 21 17 3 Regions Visited 5 Branch Regions 1 Pre-discovered Areas . | . . . . . . Known Exits Taken . | . . . . . . Unknown Exits Taken 5 | 1 1 1 1 1 . Scrap Searched . | . . . . . . Spaces Dug . | . . . . . . Terrain Destroyed 186 | . . 9 86 38 53 Melee . | . . . . . . Projectile . | . . . . . . AOE 186 | . . 9 86 38 53 Terrain Rammed . | . . . . . . Walls Destroyed . | . . . . . . Machines Disabled . | . . . . . . Actions | -11 -10 -10 -9 -8 -7 --------- Run | Yrd Mat Min Mat Mat Fac Total 924 | 72 153 128 277 148 146 Wait 37 | . 2 . 35 . . Move 775 | 51 129 116 214 135 130 Hop . | . . . . . . Pick Up 21 | 8 1 2 7 3 . Fast Attach 3 | 2 . . 1 . . Attach 13 | 5 . . 2 3 3 Detach . | . . . . . . Swap 9 | 2 . 1 4 . 2 Drop 5 | . . . 3 . 2 Fire 60 | 4 21 9 10 7 9 Melee . | . . . . . . Ram . | . . . . . . Kick . | . . . . . . Crush . | . . . . . . Escape Stasis 1 | . . . 1 . . Rewire . | . . . . . . Trap . | . . . . . . Miscellaneous . | . . . . . . Route ------- -11/Scrapyard -10/Materials -10/Mines -9/Materials -8/Materials -7/Factory History --------- Turn | Location | Event 5 | -11/Scrapyard | Discovered new exit (range 16) 88 | -11/Scrapyard | Entered Materials 263 | -10/Materials | Discovered new exit (range 16) 315 | -10/Materials | Build established: Mutant 361 | -10/Materials | Entered Mines 396 | -10/Mines | Received a Mining Laser from a helpful Derelict 466 | -10/Mines | Received a Rocket Launcher from a helpful Derelict 542 | -10/Mines | Discovered new exit (range 8) 574 | -10/Mines | Entered Materials 574 | -9/Materials | Accompanied by 1 ally 574 | -9/Materials | Evolved 2 slots: Utility x2 619 | -9/Materials | Repaired Rocket Launcher 828 | -9/Materials | Discovered new exit (range 15) 1013 | -9/Materials | Crushed by falling debris 1014 | -9/Materials | System corruption reached 10% 1021 | -9/Materials | Entered another Materials area 1021 | -8/Materials | Evolved 2 slots: Power x1, Propulsion x1 1050 | -8/Materials | Lost 5 parts (1p1n2u1w) 1252 | -8/Materials | Discovered new exit (range 16) 1294 | -8/Materials | Entered Factory 1294 | -7/Factory | Evolved 2 slots: Utility x1, Weapon x1 1581 | -7/Factory | Identified exit to DSF 1655 | -7/Factory | Self-destructed Last Messages --------------- 01642_ R-06 Scavenger collects VTOL Module. 01643_ R-06 Scavenger collects Wheel. 01646_ U-05 Engineer lays Concrete. 01646_ K-01 Serf collects debris. 01647_ U-05 Engineer lays Concrete. 01647_ U-05 Engineer builds a Wall. 01647_ R-06 Scavenger collects Lgt. Nuclear Core. 01647_ R-06 Scavenger collects Imp. Light Armor Plating. 01648_ U-05 Engineer lays Concrete. 01649_ Shock Rifle destroyed. 01649_ G-47 Trooper destroyed. 01649_ R-06 Scavenger destroyed. 01650_ U-05 Engineer lays Concrete. 01650_ G-47 Trooper destroyed. 01651_ U-05 Engineer lays Concrete. 01652_ R-06 Scavenger collects Lgt. Ion Engine. 01653_ U-05 Engineer builds a Wall. 01654_ U-05 Engineer lays Concrete. 01654_ Aluminum Leg destroyed. 01655_ U-05 Engineer lays Concrete. Map ----- +----------------------------------------------------+ | ?????????????????????????????????????????????????? | | ???? ????????????????????????????????????????????? | | ??? ????????????????????????????????????????????? | | ??? ?????????????? ????????????????????????????? | | ??? ????????????? ????????????????????????????? | | ??# ???????????? ???????????????????????????? | | ??* ??????????? ???????????????????????????? | | ?? ?????????? ??????????????????????????? | | ?? T ????????? ???????????????????????????? | | ?? ???????? ???????????????????????????? | | ?? ???##### ??????????????????????????? | | ??# #???# ???? ??????????????????????? | | ??# #???# ???? ?? ??????????????????? | | ??# ##### ???????? #? ??????????????????? | | ### #??????????????? #? ??? "?????????????? | | # #####/##?????????????? #! ??? ??????????????? | | # # #??????????????!#=""?# ???????????????? | | + #! #??????????????* ="" ????????????????? | | # # #????????????##g#%F" #????????????????? | | # # #????????????# %*["" #????????????????? | | # # #???????######=%!w! #????????????????? | | ### # #??????## # %** ##????????????????? | | ??# ##+#####??????# %[ #????????????????? | | ??# #???######## # = " #????????????????? | | ??# #???# ### T #????????????????? | | ### ##### k [@l " #????????????????? | | " #????????????????? | | ############ #????????????????? | | #####??????# ! ### u ur #????????????????? | | #??????###??##?# # ## #????????????????? | | ### #??????#####??####[#k# #! #????????????????? | | ??# ######## ####T># #%#*######????????????????? | | ??# " #= ?????????????????????? | | ??########## ## # ????????????????????? | | ???????????###### # ???????????????????? | | ????????????????+ # ??????????????????? | | ????????????????######## #| ?????????????????? | | ???????????????????????# # """ ????????????????? | | ???????????????????????# # """ #???????????????? | | ???????????????????????# # "???????????????????? | | ???????????????????????# #? ???????????????????? | | ???????????????????????? #? ???????????????????? | | ???????????????????????? #? ???????????????????? | | ???????????????????????? #???????????????????????? | | ???????????????????????? ???????????????????????? | | ???????????????????????? ???????????????????????? | | ???????????????????????? ???????????????????????? | | ???????????????????????? ???????????????????????? | | ?????????????????????????????????????????????????? | | ?????????????????????????????????????????????????? | +----------------------------------------------------+ Best States ------------- Heat Dissipation 34 Energy Generation 25 Energy Capacity 350 Matter Stores 300 Matter Capacity 300 Sight Range 16 Terrain Scan Range 16 Terrain Scan Density 10 Evasion (%) 50 Recoil Reduction 2 Item Schematics ----------------- None Robot Schematics ------------------ None Fabricated ------------ Nothing Repaired ---------- Rocket Launcher | 75% | -9/Materials Studied --------- None Alien Tech Used ----------------- None Achievements -------------- Deductive Reasoning Resistances Are Futile Challenges ------------ None Game ------ Seed AbsorptionMappingMantle Manual? 0 Play Time 00:45:54 Cumulative 37.4 hours Start 2025.10.22 @ 16:58:08 End 2025.10.23 @ 11:45:42 Sessions 1 Manual Loads 0 Difficulty Rogue Special Mode None Game No. 158 Rogue 158 Adventurer 0 Explorer 0 Win Type - Total 0 Types 0/0/0/0/0/0/0/0/0/0 Lore% 29 Gallery% 28 Achievement% 16 Wizard Run 0 Options --------- Layout 0 ASCII 0 Keyboard 0 Movement Mouse Keybinds 0 Fullscreen 1 Font 18/X11 Map View 38x25 Zoom Use 98% Tactical HUD 1 Map Filters NONE Filters NONE Steam 1 RUN: 50f74821-a22e-41f2-882a-4689e251dc13